fUSD/lending_fUSD_20241222
["ID","MTS","AMOUNT","RATE_DAILY","PERIOD"]
[346290432,1734874248979,-500.0,0.00019996,2]
[346290433,1734874248990,-500.0,0.00019996,2]
[346290434,1734874248999,-500.0,0.00019996,2]
[346290435,1734874249008,-500.0,0.00019996,2]
[346290436,1734874249017,-710.86,0.00019996,2]
[346290437,1734874249027,-292.66,0.00019996,2]
[346290438,1734874249036,-500.0,0.00019996,2]
[346290439,1734874249048,-500.0,0.00019996,2]
[346290440,1734874249058,-500.0,0.00019996,2]
[346290441,1734874249067,-500.0,0.00019996,2]
[346290442,1734874249076,-500.0,0.00019996,2]
[346290443,1734874249085,-500.0,0.00019996,2]
[346290444,1734874249095,-500.0,0.00019996,2]
[346290445,1734874249104,-500.0,0.00019996,2]
[346290446,1734874249113,-500.0,0.00019996,2]
[346290447,1734874249124,-500.0,0.00019996,2]
[346290448,1734874249135,-500.0,0.00019996,2]
[346290449,1734874249144,-500.0,0.00019996,2]
[346290450,1734874249154,-500.0,0.00019996,2]
[346290451,1734874249163,-500.0,0.00019996,2]
[346290452,1734874249173,-500.0,0.00019996,2]
[346290453,1734874249182,-500.0,0.00019996,2]
[346290454,1734874249191,-500.0,0.00019996,2]
[346290455,1734874249201,-500.0,0.00019996,2]
[346290456,1734874249211,-500.0,0.00019996,2]
[346290457,1734874249220,-500.0,0.00019996,2]
[346290458,1734874249230,-164.43,0.00019996,2]
[346290459,1734874249239,-500.0,0.00019996,2]
[346290460,1734874249252,-500.0,0.00019996,2]
[346290461,1734874249261,-500.0,0.00019996,2]
[346290462,1734874249271,-500.0,0.00019996,2]
[346290463,1734874249280,-500.0,0.00019996,2]
[346290464,1734874249290,-500.0,0.00019996,2]
[346290465,1734874249299,-500.0,0.00019996,2]
[346290466,1734874249308,-500.0,0.00019996,2]
[346290467,1734874249318,-589.91,0.00019996,2]
[346290468,1734874249470,-500.0,0.00019996,2]
[346290469,1734874249480,-500.0,0.00019996,2]
[346290470,1734874249489,-500.0,0.00019996,2]
[346290471,1734874249499,-608.38872231,0.00019996,2]
[346290472,1734874249508,-500.0,0.00019996,2]
[346290473,1734874249517,-500.0,0.00019996,2]
[346290474,1734874249526,-500.0,0.00019996,2]
[346290475,1734874249536,-500.0,0.00019996,2]
[346290476,1734874249545,-500.0,0.00019996,2]
[346290477,1734874249554,-669.8,0.00019996,2]
[346290478,1734874249564,-500.0,0.00019996,2]
[346290479,1734874249574,-500.0,0.00019996,2]
[346290480,1734874249583,-500.0,0.00019996,2]
[346290481,1734874249592,-500.0,0.00019996,2]
[346290482,1734874249602,-500.0,0.00019996,2]
[346290483,1734874249611,-630.68,0.00019996,2]
[346290484,1734874249621,-500.0,0.00019996,2]
[346290485,1734874249630,-500.0,0.00019996,2]
[346290486,1734874249640,-500.0,0.00019996,2]
[346290487,1734874249649,-500.0,0.00019996,2]
[346290488,1734874249659,-675.3,0.00019996,2]
[346290489,1734874249668,-2863.52,0.00019996,2]
[346290490,1734874249677,-500.0,0.00019996,2]
[346290491,1734874249687,-500.0,0.00019996,2]
[346290492,1734874249697,-500.0,0.00019996,2]
[346290493,1734874249706,-696.43,0.00019996,2]
[346290494,1734874249715,-500.0,0.00019996,2]
[346290495,1734874249725,-631.2,0.00019996,2]
[346290496,1734874249734,-513.87818986,0.00019996,2]
[346290497,1734874249744,-503.68716875,0.00019996,2]
[346290498,1734874249755,-1238.54,0.00019996,2]
[346290499,1734874249764,-500.0,0.00019996,2]
[346290500,1734874249774,-500.0,0.00019996,2]
[346290501,1734874249783,-500.0,0.00019996,2]
[346290502,1734874249793,-500.0,0.00019996,2]
[346290503,1734874249802,-500.0,0.00019996,2]
[346290504,1734874249812,-1207.81,0.00019996,2]
[346290505,1734874249822,-500.0,0.00019996,2]
[346290506,1734874249831,-503.05275043,0.00019996,2]
[346290507,1734874249840,-434.95,0.00019996,2]
[346290508,1734874249849,-206.62850097,0.00019996,2]
[346290509,1734874249858,-500.0,0.00019996,2]
[346290510,1734874249868,-500.0,0.00019996,2]
[346290511,1734874249877,-500.0,0.00019996,2]
[346290512,1734874249887,-500.0,0.00019996,2]
[346290513,1734874249897,-1055.86,0.00019996,2]
[346290514,1734874249908,-500.0,0.00019996,2]
[346290515,1734874249917,-960.31,0.00019996,2]
[346290516,1734874249927,-500.0,0.00019996,2]
[346290517,1734874249936,-500.0,0.00019996,2]
[346290518,1734874249948,-500.0,0.00019996,2]
[346290519,1734874249958,-500.0,0.00019996,2]
[346290520,1734874249967,-500.0,0.00019996,2]
[346290521,1734874249976,-500.0,0.00019996,2]
[346290522,1734874249986,-500.0,0.00019996,2]
[346290523,1734874249995,-7888.24,0.00019996,2]
[346290524,1734874250005,-1118.62,0.00019996,2]
[346290525,1734874250015,-526.27,0.00019996,2]
[346290526,1734874250024,-500.0,0.00019996,2]
[346290527,1734874250034,-500.0,0.00019996,2]
[346290528,1734874250047,-500.0,0.00019996,2]
[346290529,1734874250056,-500.0,0.00019996,2]
[346290530,1734874250066,-910.34,0.00019996,2]
[346290531,1734874250075,-1001.56,0.00019996,2]
[346290532,1734874250085,-3527.06,0.00019996,2]
[346290533,1734874250094,-507.47329175,0.00019996,2]
[346290534,1734874250104,-500.0,0.00019996,2]
[346290535,1734874250114,-500.0,0.00019996,2]
[346290536,1734874250123,-500.0,0.00019996,2]
[346290537,1734874250134,-500.0,0.00019996,2]
[346290538,1734874250144,-708.94,0.00019996,2]
[346290539,1734874250153,-500.0,0.00019996,2]
[346290540,1734874250163,-500.0,0.00019996,2]
[346290541,1734874250174,-500.0,0.00019996,2]
[346290542,1734874250183,-500.0,0.00019996,2]
[346290543,1734874250193,-500.0,0.00019996,2]
[346290544,1734874250203,-500.0,0.00019996,2]
[346290545,1734874250213,-708.92,0.00019996,2]
[346290546,1734874250223,-500.0,0.00019996,2]
[346290547,1734874250232,-847.79,0.00019996,2]
[346290548,1734874250242,-500.75629964,0.00019996,2]
[346290549,1734874250252,-500.0,0.00019996,2]
[346290550,1734874250262,-504.12610799,0.00019996,2]
[346290551,1734874250271,-500.0,0.00019996,2]
[346290552,1734874250281,-500.0,0.00019996,2]
[346290553,1734874250291,-500.0,0.00019996,2]
[346290554,1734874250300,-500.0,0.00019996,2]
[346290555,1734874250309,-500.0,0.00019996,2]
[346290556,1734874250319,-1847.45,0.00019996,2]
[346290557,1734874250329,-419.86297715,0.00019996,2]
[346290558,1734874250338,-500.0,0.00019996,2]
[346290559,1734874250348,-1037.84,0.00019996,2]
[346290560,1734874250357,-500.0,0.00019996,2]
[346290561,1734874250367,-500.0,0.00019996,2]
[346290562,1734874250376,-500.0,0.00019996,2]
[346290563,1734874250386,-500.0,0.00019996,2]
[346290564,1734874250395,-500.0,0.00019996,2]
[346290565,1734874250404,-760.28,0.00019996,2]
[346290566,1734874250414,-500.0,0.00019996,2]
[346290567,1734874250423,-503.34640642,0.00019996,2]
[346290568,1734874250433,-500.0,0.00019996,2]
[346290569,1734874250442,-500.0,0.00019996,2]
[346290570,1734874250452,-500.0,0.00019996,2]
[346290571,1734874250462,-500.0,0.00019996,2]
[346290572,1734874250471,-500.0,0.00019996,2]
[346290573,1734874250481,-500.0,0.00019996,2]
[346290574,1734874250490,-789.38,0.00019996,2]
[346290575,1734874250499,-500.0,0.00019996,2]
[346290576,1734874250509,-500.0,0.00019996,2]
[346290577,1734874250518,-500.0,0.00019996,2]
[346290578,1734874250528,-536.46,0.00019996,2]
[346290579,1734874250538,-18893.95,0.00019996,2]
[346290580,1734874250548,-500.0,0.00019996,2]
[346290581,1734874250557,-500.0,0.00019996,2]
[346290582,1734874250567,-6445.7,0.00019996,2]
[346290583,1734874250576,-500.0,0.00019996,2]
[346290584,1734874250586,-500.0,0.00019996,2]
[346290585,1734874250595,-500.0,0.00019996,2]
[346290586,1734874250605,-346.81127589,0.00019996,2]
[346290587,1734874250614,-500.0,0.00019996,2]
[346290588,1734874250624,-500.0,0.00019996,2]
[346290589,1734874250633,-1797.76,0.00019996,2]
[346290590,1734874250643,-500.0,0.00019996,2]
[346290591,1734874250653,-500.0,0.00019996,2]
[346290592,1734874250662,-500.0,0.00019996,2]
[346290593,1734874250672,-500.0,0.00019996,2]
[346290594,1734874250681,-500.0,0.00019996,2]
[346290595,1734874250691,-500.0,0.00019996,2]
[346290596,1734874250701,-500.0,0.00019996,2]
[346290597,1734874250710,-500.0,0.00019996,2]
[346290598,1734874250720,-500.0,0.00019996,2]
[346290599,1734874250733,-500.0,0.00019996,2]
[346290600,1734874250748,-500.0,0.00019996,2]
[346290601,1734874250762,-500.0,0.00019996,2]
[346290602,1734874250774,-500.0,0.00019996,2]
[346290603,1734874250788,-1948.66,0.00019996,2]
[346290604,1734874250802,-500.0,0.00019996,2]
[346290605,1734874250816,-767.86,0.00019996,2]
[346290606,1734874250829,-500.0,0.00019996,2]
[346290607,1734874250842,-500.0,0.00019996,2]
[346290608,1734874250854,-500.0,0.00019996,2]
[346290609,1734874250865,-502.75919885,0.00019996,2]
[346290610,1734874250879,-500.0,0.00019996,2]
[346290611,1734874250893,-4545.15,0.00019996,2]
[346290612,1734874250906,-500.0,0.00019996,2]
[346290613,1734874250920,-6930.27,0.00019996,2]
[346290614,1734874250934,-461.56,0.00019996,2]
[346290615,1734874250947,-500.0,0.00019996,2]
[346290616,1734874250963,-500.0,0.00019996,2]
[346290617,1734874250977,-500.0,0.00019996,2]
[346290618,1734874250990,-500.0,0.00019996,2]
[346290619,1734874251003,-1355.68,0.00019996,2]
[346290620,1734874251016,-500.0,0.00019996,2]
[346290621,1734874251031,-500.0,0.00019996,2]
[346290622,1734874251047,-500.0,0.00019996,2]
[346290623,1734874251058,-500.0,0.00019996,2]
[346290624,1734874251070,-500.0,0.00019996,2]
[346290625,1734874251085,-500.0,0.00019996,2]
[346290626,1734874251098,-503.03966778,0.00019996,2]
[346290627,1734874251108,-500.0,0.00019996,2]
[346290628,1734874251121,-500.0,0.00019996,2]
[346290629,1734874251134,-501.1937427,0.00019996,2]
[346290630,1734874251149,-500.0,0.00019996,2]
[346290631,1734874251160,-500.0,0.00019996,2]
[346290632,1734874251171,-1000.0,0.00019996,2]
[346290633,1734874251185,-500.0,0.00019996,2]
[346290634,1734874251198,-500.0,0.00019996,2]
[346290635,1734874251211,-831.8,0.00019996,2]
[346290636,1734874251224,-2060.34,0.00019996,2]
[346290637,1734874251236,-500.0,0.00019996,2]
[346290638,1734874251249,-500.0,0.00019996,2]
[346290639,1734874251262,-500.0,0.00019996,2]
[346290640,1734874251275,-500.0,0.00019996,2]
[346290641,1734874251288,-500.0,0.00019996,2]
[346290642,1734874251301,-500.0,0.00019996,2]
[346290643,1734874251313,-258.65,0.00019996,2]
[346290644,1734874251326,-500.0,0.00019996,2]
[346290645,1734874251339,-500.0,0.00019996,2]
[346290646,1734874251351,-503.76368822,0.00019996,2]
[346290647,1734874251363,-500.0,0.00019996,2]
[346290648,1734874251375,-501.04436566,0.00019996,2]
[346290649,1734874251387,-500.0,0.00019996,2]
[346290650,1734874251398,-500.0,0.00019996,2]
[346290651,1734874251410,-1330.31,0.00019996,2]
[346290652,1734874251422,-500.0,0.00019996,2]
[346290653,1734874251434,-505.68318955,0.00019996,2]
[346290654,1734874251446,-500.0,0.00019996,2]
[346290655,1734874251458,-500.0,0.00019996,2]
[346290656,1734874251470,-500.0,0.00019996,2]
[346290657,1734874251483,-500.0,0.00019996,2]
[346290658,1734874251495,-612.24194206,0.00019997,2]
[346290659,1734874251506,-500.0,0.00019997,2]
[346290660,1734874251518,-500.0,0.00019997,2]
[346290661,1734874251530,-500.0,0.00019997,2]
[346290662,1734874251541,-500.0,0.00019997,2]
[346290663,1734874251553,-500.0,0.00019997,2]
[346290664,1734874251567,-500.0,0.00019997,2]
[346290665,1734874251580,-545.92564934,0.00019997,2]
[346290666,1734874251592,-500.0,0.00019997,2]
[346290667,1734874251606,-500.0,0.00019997,2]
[346290668,1734874251619,-500.0,0.00019997,2]
[346290669,1734874251630,-206.616819,0.00019997,2]
[346290670,1734874251643,-206.616819,0.00019997,2]
[346290671,1734874251655,-153.805852,0.00019997,2]
[346290672,1734874251668,-1011.730678,0.00019997,2]
[346290673,1734874251680,-151.0,0.00019997,2]
[346290674,1734874251691,-1011.730678,0.00019997,2]
[346290675,1734874251703,-268.976521,0.00019997,2]
[346290676,1734874251716,-151.0,0.00019997,2]
[346290677,1734874251728,-151.0,0.00019997,2]
[346290678,1734874251740,-151.0,0.00019997,2]
[346290679,1734874251752,-151.0,0.00019997,2]
[346290680,1734874251764,-151.0,0.00019997,2]
[346290681,1734874251777,-285.593437,0.00019997,2]
[346290682,1734874251789,-285.593437,0.00019997,2]
[346290683,1734874251801,-150.0,0.00019998,2]
[346290684,1734874251813,-1500.0,0.00019998,2]
[346290685,1734874251824,-150.0,0.00019998,2]
[346290686,1734874251837,-500.0,0.00019999,2]
[346290687,1734874251848,-153.279071,0.00019999,2]
[346290688,1734874251861,-151.0,0.00019999,2]
[346290689,1734874251872,-151.0,0.00019999,2]
[346290690,1734874251885,-565.509328,0.00019999,2]
[346290691,1734874251897,-565.509328,0.00019999,2]
[346290692,1734874251910,-151.0,0.00019999,2]
[346290693,1734874251922,-282.324339,0.00019999,2]
[346290694,1734874251934,-282.324339,0.00019999,2]
[346290695,1734874251948,-1000.0,0.00019999,3]
[346290696,1734874251960,-1000.0,0.00019999,2]
[346290697,1734874251973,-1000.0,0.00019999,4]
[346290698,1734874251985,-94880.87474971,0.00019999,2]
[346290699,1734874251996,-151.0,0.00019999,2]
[346290700,1734874252009,-151.0,0.00019999,2]
[346290701,1734874252021,-151.0,0.00019999,2]
[346290702,1734874252033,-151.0,0.00019999,2]
[346290703,1734874252049,-151.0,0.00019999,2]
[346290704,1734874252061,-157.570704,0.00019999,2]
[346290705,1734874252073,-500.0,0.00019999,2]
[346290706,1734874252085,-500.0,0.00019999,2]
[346290707,1734874252097,-500.0,0.00019999,2]
[346290708,1734874252110,-151.0,0.00019999,2]
[346290709,1734874252121,-289.991816,0.00019999,2]
[346290710,1734874252134,-161.995222,0.00019999,2]
[346290711,1734874252145,-289.991816,0.00019999,2]
[346290712,1734874252157,-161.995222,0.00019999,2]
[346290713,1734874252169,-376200.25163476,0.0002,2]
[346290714,1734874252181,-13726.17246662,0.0002,2]
[346290715,1734874252193,-19627.03,0.0002,2]
[346290716,1734874252206,-501.824739,0.0002,2]
[346290717,1734874252218,-447.45719334,0.0002,2]
[346290718,1734874252231,-2927179.92602929,0.0002,2]
[346290719,1734874252762,-17000.00000005,0.0002,2]
[346290720,1734874252773,-19600.0,0.0002,2]
[346290721,1734874253020,-500.0,0.00016164,2]
[346290722,1734874253030,-500.0,0.00018904,2]
[346290723,1734874253041,-500.0,0.00019178,2]
[346290724,1734874253052,-500.0,0.00019452,2]
[346290725,1734874253063,-500.0,0.00019726,2]
[346290726,1734874253073,-106287.18986075,0.0002,2]
[346290727,1734874253101,-276.26530975,0.0002,2]
[346290728,1734874253113,-5648.22,0.0002,2]
[346290729,1734874253125,-647.76,0.0002,2]
[346290730,1734874253303,-500.0,0.00019996,2]
[346290731,1734874253313,-447.72946,0.0002,2]
[346290732,1734874254010,-500.0,0.00019178,2]
[346290733,1734874254020,-500.0,0.00019178,2]
[346290734,1734874254030,-447.78479097,0.000193,2]
[346290735,1734874254045,-769.45156274,0.000193,2]
[346290736,1734874254074,-445.292931,0.000191,2]
[346290737,1734874254089,-13310.707069,0.000191,2]
[346290738,1734874254099,-700.05591074,0.000193,2]
[346290739,1734874254110,-1144.42569683,0.000193,2]
[346290740,1734874254854,-500.0,0.00019178,2]
[346290741,1734874254864,-500.0,0.00019178,2]
[346290742,1734874254874,-518.16043498,0.00019178,2]
[346290743,1734874254884,-5336.67766448,0.000193,2]
[346290744,1734874255096,-1137.42256024,0.000193,2]
[346290745,1734874255140,-6496.98019051,0.000193,2]
[346290746,1734874255186,-334.76241483,0.000193,2]
[346290747,1734874255364,-9656.03291102,0.000193,2]
[346290757,1734874782817,239.29,0.00010137,2]
[346290762,1734875432331,-160.75,0.00014094,2]
[346290763,1734875432340,-640.34136879,0.00015708,2]
[346290764,1734875432350,-640.34136877,0.00015718,2]
[346290765,1734875432359,-500.0,0.00015808,2]
[346290766,1734875432369,-1032.21,0.00015929,2]
[346290767,1734875432379,-500.0,0.00016164,2]
[346290768,1734875432389,-239.29,0.00016813,2]
[346290769,1734875432398,-150.0,0.00016986,2]
[346290770,1734875432407,-600.0,0.00017,2]
[346290771,1734875432416,-1000.0,0.00017531,2]
[346290772,1734875432425,-164.84,0.0001756,2]
[346290773,1734875432434,-150.0,0.00017587,2]
[346290774,1734875432443,-1023.04,0.00017623,2]
[346290775,1734875432453,-200.0,0.00017685,2]
[346290776,1734875432463,-250.0,0.0001771,2]
[346290777,1734875432473,-500.0,0.00017802,2]
[346290778,1734875432482,-250.0,0.00017874,2]
[346290779,1734875432491,-2832.55,0.00017876,2]
[346290780,1734875432500,-1607.41,0.00017906,2]
[346290781,1734875432510,-480.35,0.00017911,2]
[346290782,1734875432519,-872.01,0.00017914,2]
[346290783,1734875432529,-150.0,0.00018,2]
[346290784,1734875432539,-6108.35494881,0.00018019,2]
[346290785,1734875432578,-2394.5798699,0.00018019,2]
[346290786,1734875432613,-2517.79518129,0.00018019,2]
[346290787,1734875432623,-167.43,0.0001808,2]
[346290788,1734875432632,-1032.21,0.00018193,2]
[346290789,1734875432642,-155.81,0.00018201,2]
[346290790,1734875432652,-500.0,0.00018623,2]
[346290791,1734875432661,-156.85106071,0.00018795,2]
[346290792,1734875432671,-2175.36,0.0001884,2]
[346290793,1734875432680,-2175.36,0.00018845,2]
[346290794,1734875432690,-2175.36,0.0001885,2]
[346290795,1734875432701,-2175.36,0.00018855,2]
[346290796,1734875432712,-2175.36,0.0001886,2]
[346290797,1734875432721,-1000.0,0.00018864,2]
[346290798,1734875432731,-2175.36,0.00018865,2]
[346290799,1734875432740,-2175.36,0.0001887,2]
[346290800,1734875432751,-2175.36,0.00018875,2]
[346290801,1734875432760,-2175.36,0.0001888,2]
[346290802,1734875432770,-2175.36,0.00018885,2]
[346290803,1734875432779,-2175.36,0.00018889,2]
[346290804,1734875432789,-300.0,0.00018891,2]
[346290805,1734875432799,-2175.36,0.00018894,2]
[346290806,1734875432808,-2175.36,0.00018899,2]
[346290807,1734875432817,-500.0,0.00018904,2]
[346290808,1734875432827,-2175.36,0.00018904,2]
[346290809,1734875432836,-2175.36,0.00018909,2]
[346290811,1734875432845,-2175.36,0.00018914,2]
[346290813,1734875432854,-2175.36,0.00018919,2]
[346290815,1734875432864,-2175.36,0.00018924,2]
[346290817,1734875432873,-2175.36,0.00018929,2]
[346290819,1734875432882,-2175.36,0.00018934,2]
[346290821,1734875432891,-977.18,0.00018978,2]
[346290823,1734875432901,-3916.74392854,0.00018985,2]
[346290825,1734875432910,-600.0,0.00019,3]
[346290827,1734875432919,-360.685,0.00019,2]
[346290829,1734875432928,-874.0,0.00019041,2]
[346290831,1734875432937,-1575.83,0.00019041,2]
[346290833,1734875432946,-156.85106071,0.00019041,2]
[346290834,1734875432955,-2524.23875298,0.00019077,5]
[346290835,1734875432964,-6615.18711137,0.00019078,2]
[346290836,1734875432973,-1000.0,0.00019078,2]
[346290837,1734875432982,-124522.4524,0.00019078,2]
[346290838,1734875432991,-26867.2833,0.00019078,2]
[346290839,1734875433000,-165.70227259,0.00019085,2]
[346290840,1734875433010,-3916.74392849,0.00019087,2]
[346290841,1734875433019,-151.31,0.00019159,2]
[346290842,1734875433029,-6615.18711129,0.00019169,2]
[346290843,1734875433038,-584.25356851,0.00019177,2]
[346290844,1734875433047,-500.0,0.00019177,2]
[346290845,1734875433057,-500.0,0.00019177,2]
[346290846,1734875433067,-381.42271245,0.00019177,2]
[346290847,1734875433076,-500.0,0.00019178,2]
[346290848,1734875433087,-500.0,0.00019178,2]
[346290849,1734875433097,-500.0,0.00019178,2]
[346290850,1734875433106,-500.0,0.00019178,2]
[346290851,1734875433115,-518.38717196,0.00019178,2]
[346290852,1734875433125,-500.0,0.00019178,2]
[346290853,1734875433134,-500.0,0.00019178,2]
[346290854,1734875433145,-500.0,0.00019178,2]
[346290855,1734875433155,-500.0,0.00019178,2]
[346290856,1734875433164,-594.82266358,0.00019178,2]
[346290857,1734875433173,-500.0,0.00019178,2]
[346290858,1734875433182,-500.0,0.00019178,2]
[346290859,1734875433192,-779.15,0.00019178,2]
[346290860,1734875433202,-338.90798856,0.00019178,2]
[346290861,1734875433211,-500.0,0.00019178,2]
[346290862,1734875433222,-500.0,0.00019178,2]
[346290863,1734875433232,-500.0,0.00019178,2]
[346290864,1734875433241,-500.0,0.00019178,2]
[346290865,1734875433251,-500.0,0.00019178,2]
[346290866,1734875433260,-507.14677871,0.00019178,2]
[346290867,1734875433269,-500.0,0.00019178,2]
[346290868,1734875433280,-500.0,0.00019178,2]
[346290869,1734875433289,-540.82,0.00019178,2]
[346290870,1734875433299,-500.0,0.00019178,2]
[346290871,1734875433308,-500.0,0.00019178,2]
[346290872,1734875433318,-500.0,0.00019178,2]
[346290873,1734875433328,-500.0,0.00019178,2]
[346290874,1734875433338,-549.82,0.00019178,2]
[346290875,1734875433348,-500.0,0.00019178,2]
[346290876,1734875433357,-500.0,0.00019178,2]
[346290877,1734875433367,-500.0,0.00019178,2]
[346290878,1734875433376,-500.0,0.00019178,2]
[346290879,1734875433386,-500.0,0.00019178,2]
[346290880,1734875433396,-700.0,0.00019178,2]
[346290881,1734875433405,-500.0,0.00019178,2]
[346290882,1734875433415,-500.0,0.00019178,2]
[346290883,1734875433425,-500.0,0.00019178,2]
[346290884,1734875433435,-500.0,0.00019178,2]
[346290885,1734875433444,-500.0,0.00019178,2]
[346290886,1734875433454,-500.0,0.00019178,2]
[346290887,1734875433465,-500.0,0.00019178,2]
[346290888,1734875433475,-500.0,0.00019178,2]
[346290889,1734875433485,-399.75329635,0.00019178,2]
[346290890,1734875433495,-500.0,0.00019178,2]
[346290891,1734875433504,-500.82049699,0.00019178,2]
[346290892,1734875433514,-500.0,0.00019178,2]
[346290893,1734875433524,-500.0,0.00019178,2]
[346290894,1734875433534,-500.0,0.00019178,2]
[346290895,1734875433544,-500.0,0.00019178,2]
[346290896,1734875433554,-500.0,0.00019178,2]
[346290897,1734875433563,-500.0,0.00019178,2]
[346290898,1734875433573,-500.0,0.00019178,2]
[346290899,1734875433583,-500.0,0.00019178,2]
[346290900,1734875433592,-500.0,0.00019178,2]
[346290901,1734875433602,-500.0,0.00019178,2]
[346290902,1734875433612,-500.0,0.00019178,2]
[346290903,1734875433621,-500.0,0.00019178,2]
[346290904,1734875433631,-153.55575257,0.00019178,2]
[346290905,1734875433640,-500.0,0.00019178,2]
[346290906,1734875433650,-500.0,0.00019178,2]
[346290907,1734875433660,-500.0,0.00019178,2]
[346290908,1734875433669,-500.0,0.00019178,2]
[346290909,1734875433679,-500.0,0.00019178,2]
[346290910,1734875433688,-500.0,0.00019178,2]
[346290911,1734875433698,-500.0,0.00019178,2]
[346290912,1734875433711,-500.0,0.00019178,2]
[346290913,1734875433722,-500.0,0.00019178,2]
[346290914,1734875433732,-500.0,0.00019178,2]
[346290915,1734875433742,-500.0,0.00019178,2]
[346290916,1734875433752,-500.0,0.00019178,2]
[346290917,1734875433762,-500.0,0.00019178,2]
[346290918,1734875433771,-500.0,0.00019178,2]
[346290919,1734875433782,-504.96524661,0.00019178,2]
[346290920,1734875433791,-500.0,0.00019178,2]
[346290921,1734875433801,-500.0,0.00019178,2]
[346290922,1734875433811,-500.0,0.00019178,2]
[346290923,1734875433820,-500.0,0.00019178,2]
[346290924,1734875433829,-507.13199383,0.00019178,2]
[346290925,1734875433837,-500.0,0.00019178,2]
[346290926,1734875433846,-500.0,0.00019178,2]
[346290927,1734875433855,-500.0,0.00019178,2]
[346290928,1734875433865,-500.0,0.00019178,2]
[346290929,1734875433874,-500.0,0.00019178,2]
[346290930,1734875433884,-647.90010559,0.00019178,120]
[346290931,1734875433893,-500.0,0.00019178,2]
[346290932,1734875433903,-500.0,0.00019178,2]
[346290933,1734875433912,-500.0,0.00019178,2]
[346290934,1734875433922,-500.0,0.00019178,2]
[346290935,1734875433932,-500.0,0.00019178,2]
[346290936,1734875433942,-500.0,0.00019178,2]
[346290937,1734875433951,-510.09105461,0.00019178,2]
[346290938,1734875433961,-500.0,0.00019178,2]
[346290939,1734875433971,-500.0,0.00019178,2]
[346290940,1734875433980,-500.0,0.00019178,2]
[346290941,1734875433990,-500.0,0.00019178,2]
[346290942,1734875433999,-500.0,0.00019178,2]
[346290943,1734875434008,-614.94479991,0.00019178,2]
[346290944,1734875434018,-500.0,0.00019178,2]
[346290945,1734875434027,-500.0,0.00019178,2]
[346290946,1734875434036,-500.0,0.00019178,2]
[346290947,1734875434045,-500.0,0.00019178,2]
[346290948,1734875434055,-500.0,0.00019178,2]
[346290949,1734875434064,-500.0,0.00019178,2]
[346290950,1734875434073,-500.0,0.00019178,2]
[346290951,1734875434082,-500.0,0.00019178,2]
[346290952,1734875434091,-500.0,0.00019178,2]
[346290953,1734875434101,-500.0,0.00019178,2]
[346290954,1734875434110,-500.0,0.00019178,2]
[346290955,1734875434119,-500.0,0.00019178,2]
[346290956,1734875434129,-502.10129508,0.00019178,2]